Cogmind - Beta 13 @@@ ROGUE MODE // 2024.05.08 @ 21:15:03 Player: Cheeriohz Result: Destroyed by as-19762 with Assembled Heavy Rifle Performance ------------- Evolutions (3) 1500 Regions Visited (14) 2800 Robots Destroyed (135) 675 Value Destroyed (4767) 4767 Prototype IDs (43) 860 Alien Tech Used (0) 0 Bonus (3934) 3934 TOTAL SCORE: 14536 Bonus ------- High Alert Combat Kills 593 Follower Combat Kills 491 Entered Garrisons 200 Aligned with FarCom 300 Met Imprinter 300 Destroyed Z-Imprinter 1000 Triggered Deep Caves Wall 500 Exposed GOLEM Chamber 500 Acquired ECA 300 Friendly Fire -250 Cogmind --------- Core Integrity 0/700 Matter 154/300 Energy 100/100 System Corruption 9% Temperature Cool (0) Movement Rolling (130) Ox2 Location -7/Deep Caves Parts ------- > --- POWER (2) -------- (None) > --- PROPULSION (4) --- Centrium Wheel Centrium Wheel > --- UTILITY (4) ------ Huge Storage Unit Advanced Targeting Computer > --- WEAPON (3) ------- Latent Energy Streamer > --- INVENTORY (25) --- Advanced Heat Sink Improved Cooling System High-capacity Matter Pod (200) Seismic Detector Encrypted Comm Array Transmission Jammer Zionite Weapon Casing Hardened Light Armor Plating Medium Insulated Plating Improved Shield Generator Makeshift Hacking Suite Hacking Drone Bay (1/1) Lightning Gun Improved EM Pulse Cannon Heavy Ion Cannon Chainsword Greatsword Peak State ------------ > --- POWER ------------ Cooled Deuterium Engine Micro Nuclear Core > --- PROPULSION ------- Improved Treads Medium Treads Centrium Wheel Centrium Wheel > --- UTILITY ---------- Huge Storage Unit Advanced Targeting Computer Improved Medium Armor Plating Hacking Drone Bay > --- WEAPON ----------- Cooled Pulse Rifle Heavy Ion Cannon Advanced Assault Cannon > --- INVENTORY -------- Light Treads Heavy Treads Improved Heat Sink Advanced Heat Sink Compact Battery High-capacity Matter Pod Seismic Detector Encrypted Comm Array Transmission Jammer Hardened Light Armor Plating Improved Light Armor Plating Improved Medium Armor Plating Medium Insulated Plating Improved Shield Generator Lightning Gun Lightning Gun Improved EM Pulse Cannon Latent Energy Streamer Improved Grenade Launcher Missile Launcher Chainsword Greatsword CR-A16's Pointy Stick [Rating: 68] Favorites ----------- Power Cooled Deuterium Engine Engine Cooled Deuterium Engine Power Core Micro Nuclear Core Reactor Antimatter Reactor Propulsion Light Treads Treads Light Treads Leg Aluminum Leg Wheel Centrium Wheel Utility Advanced Targeting Computer Device Improved Heat Sink Storage High-capacity Storage Unit Processor Advanced Targeting Computer Hackware Hacking Suite Protection Improved Light Armor Plating Weapon Assault Rifle Energy Gun Cooled Pulse Rifle Energy Cannon Heavy Ion Cannon Ballistic Gun Assault Rifle Ballistic Cannon Advanced Assault Cannon Launcher Shock Bomb Launcher Impact Weapon Makeshift Hammer Slashing Weapon Chainsword Build | -11 -10 -10 -10 -9 -8 -8 -8 -7 -7 -7 -7 -7 -7 -7 ------- Run | Yrd Mat Min Exi Min Mat Gar Mat Fac Was Fac Low Low Zio Dee Slots Evolved 6 | . . . . . 4 . . 2 . . . . . . Power 1 | . . . . . . . . 1 . . . . . . Propulsion 2 | . . . . . 2 . . . . . . . . . Utility 2 | . . . . . 2 . . . . . . . . . Weapon 1 | . . . . . . . . 1 . . . . . . Parts Attached 194 | 1 12 2 1 7 17 49 29 6 9 14 4 14 9 20 Power 15 | . 1 . . 1 1 1 3 2 1 4 . 1 . . Engine 10 | . 1 . . . . 1 3 2 . 2 . 1 . . Core 4 | . . . . 1 1 . . . . 2 . . . . Reactor 1 | . . . . . . . . . 1 . . . . . Propulsion 46 | . 4 . . . 6 13 8 1 3 2 2 3 . 4 Treads 38 | . 2 . . . 6 13 8 . 3 1 . 3 . 2 Leg 2 | . 2 . . . . . . . . . . . . . Wheel 6 | . . . . . . . . 1 . 1 2 . . 2 Hover . | . . . . . . . . . . . . . . . Flight . | . . . . . . . . . . . . . . . Utility 44 | 1 4 1 1 1 5 7 3 2 2 3 . 4 5 5 Device 19 | 1 2 . . . 3 3 . 1 . 1 . 2 4 2 Storage 6 | . 1 . 1 . . . 1 . 2 1 . . . . Processor 2 | . . . . . 1 . . . . . . . 1 . Hackware 1 | . . . . . . . . 1 . . . . . . Protection 16 | . 1 1 . 1 1 4 2 . . 1 . 2 . 3 Artifact . | . . . . . . . . . . . . . . . Weapon 89 | . 3 1 . 5 5 28 15 1 3 5 2 6 4 11 Energy Gun 10 | . . . . . 1 2 2 . . 1 1 . 1 2 Energy Cannon 11 | . . . . . . 1 4 . 1 1 . 2 . 2 Ballistic Gun 16 | . 2 1 . 2 3 7 1 . . . . . . . Ballistic Cannon 21 | . 1 . . 1 . 6 5 . 2 1 . 1 2 2 Launcher 19 | . . . . 2 1 5 3 . . 2 1 2 . 3 Special Weapon . | . . . . . . . . . . . . . . . Impact Weapon 8 | . . . . . . 6 . 1 . . . 1 . . Slashing Weapon 4 | . . . . . . 1 . . . . . . 1 2 Piercing Weapon . | . . . . . . . . . . . . . . . Special Melee Weapon . | . . . . . . . . . . . . . . . Unidentified Prototypes 8 | . . . . . . . 2 . . 3 . . 1 2 Corrupted Parts 4 | . . . . . . . . . . . . 4 . . System Corruption 26 | . . . . . . . . . . . . 26 . . Parts Lost 36 | . . . . . 1 6 3 . 5 2 . 7 . 12 Power 7 | . . . . . . 1 1 . 2 . . 1 . 2 Propulsion 9 | . . . . . . 1 1 . 2 . . 2 . 3 Utility 11 | . . . . . 1 2 1 . 1 . . 2 . 4 Weapon 9 | . . . . . . 2 . . . 2 . 2 . 3 Highest Loss Streak 10 | . . . . . 1 3 1 . 3 1 . 7 . 10 To Critical Strikes 1 | . . . . . . . . . 1 . . . . . Average Slot Usage (%) 92 | . 100 100 100 100 99 99 98 82 67 69 86 94 99 90 Engine 6 | . 14 14 14 8 . 2 8 13 5 1 7 6 7 6 Core 4 | . . . . 5 9 6 . . . 4 7 7 7 6 Treads 22 | . 11 28 28 28 36 35 35 17 9 7 4 10 15 21 Leg 1 | . 16 . . . . . . . . . . . . . Wheel 3 | . . . . . . . . 5 7 7 12 16 15 1 Device 5 | . 3 . . . 12 9 9 6 5 6 7 6 7 7 Storage 9 | . 14 14 14 14 9 9 8 7 6 7 7 7 7 7 Processor 5 | . . . . . 4 9 9 7 7 7 7 7 7 7 Hackware 1 | . . . . . . . . 5 7 6 . . . . Protection 8 | . 10 14 14 14 9 8 8 1 . . 7 6 7 6 Energy Gun 2 | . . . . . 3 2 1 . . 3 6 7 6 6 Energy Cannon 1 | . . . . . . . 3 . . . 7 6 7 2 Ballistic Gun 9 | . 25 28 28 21 13 3 3 . . . . . . . Ballistic Cannon 5 | . 2 . . 5 . 5 6 7 12 11 7 . 4 5 Impact Weapon 1 | . . . . . . 5 1 6 . . . 5 1 . Naked Turns . | . . . . . . . . . . . . . . . Heaviest Build 125 | 15 32 32 52 57 60 67 72 84 82 123 125 123 123 123 Greatest Support 121 | 20 40 40 40 40 89 89 82 80 28 70 70 60 32 121 Greatest Overweight (x) 37 | . 1 . 1 1 . 1 1 2 2 3 4 37 5 3 Average Overweight (x) 1 | . . . . 1 . . . 1 1 2 2 2 3 . Largest Inventory Capacity 25 | 8 15 15 20 20 20 20 20 20 20 25 25 25 25 25 Average Capacity 20 | 8 12 15 18 20 20 20 19 20 14 23 25 25 25 25 Most Carried 25 | 7 15 15 16 20 20 20 20 20 20 25 25 25 25 25 Average Carried 18 | 6 9 14 15 19 19 19 19 19 12 13 24 24 24 24 Final Capacity 25 | 8 15 15 20 20 20 20 20 20 5 25 25 25 25 25 Final Carried 25 | 7 15 15 16 20 20 20 20 20 3 24 25 24 25 18 Class Distribution -------------------- 55% | Mutant 24% | Scavenger-Mutant 8% | Skirmisher 7% | Scavenger-Gunner 3% | Tank Dominant Class ---------------- Mutant | -10/Materials Mutant | -10/Mines Mutant | -10/Exiles Mutant | -9/Mines Mutant | -8/Materials Scavenger-Mutant | -8/Garrison Mutant | -8/Materials Mutant | -7/Factory Skirmisher | -7/Waste Mutant | -7/Factory Tank | -7/Lower Caves Scavenger-Mutant | -7/Lower Caves Scavenger-Gunner | -7/Zion Scavenger-Mutant | -7/Deep Caves Resources | -11 -10 -10 -10 -9 -8 -8 -8 -7 -7 -7 -7 -7 -7 -7 ----------- Run | Yrd Mat Min Exi Min Mat Gar Mat Fac Was Fac Low Low Zio Dee Matter Collected 5385 | 225 390 227 15 274 405 1033 811 . 634 479 212 421 48 211 Remotely 135 | . 135 . . . . . . . . . . . . . Salvage Created 6268 | 102 300 64 . 394 518 1010 895 . 989 668 84 763 . 481 Parts 262 | 5 12 2 . 32 35 54 44 . 2 29 6 27 . 14 Haulers Intercepted 9 | . 2 . . . 3 . 3 . . 1 . . . . Recyclers Shooed 3 | . 1 . . . . . 2 . . . . . . . Parts Field Recycled . | . . . . . . . . . . . . . . . Retrieved Matter . | . . . . . . . . . . . . . . . Parts Self-Destructed 14 | . . . . . . . . . . . 6 8 . . Prevented 18 | . . . . . . . . . . . . 18 . . Kills | -11 -10 -10 -10 -9 -8 -8 -8 -7 -7 -7 -7 -7 -7 -7 ------- Run | Yrd Mat Min Exi Min Mat Gar Mat Fac Was Fac Low Low Zio Dee Combat Hostiles Destroyed 125 | . 5 3 . 10 10 29 15 . 4 13 4 12 . 20 Guns 31 | . 4 3 . 4 7 7 2 . . 1 . . . 3 Cannons 35 | . 1 . . 2 . 12 8 . 4 5 1 1 . 1 AOE 54 | . . . . 4 3 10 4 . . 6 3 9 . 15 Classes Destroyed 18 | 2 2 1 . 3 . 2 3 . 1 . . 2 . 2 Builder 3 | . . . . 2 . . 1 . . . . . . . Tunneler 3 | 1 . . . 2 . . . . . . . . . . Hauler 9 | . 2 . . . 3 . 3 . . 1 . . . . Recycler 7 | 1 . . . 1 . . 2 . . 3 . . . . Mechanic 1 | . . . . . . . . . . . . 1 . . Operator 3 | . . . . . . . 2 . . 1 . . . . Watcher 1 | . . . . . . . 1 . . . . . . . Swarmer 24 | . . . . 5 3 7 . . . 4 3 2 . . Grunt 40 | . 5 1 . 5 4 7 7 . . 6 . 5 . . Brawler 4 | . . . . . . . . . . . . 4 . . Duelist 2 | . . . . . . 2 . . . . . . . . Sentry 24 | . . . . 1 3 10 7 . . 1 1 1 . . Hunter 1 | . . . . . . . 1 . . . . . . . Programmer 5 | . . . . . . 3 . . . 2 . . . . Compactor 4 | . . . . . . . . . 4 . . . . . Z-Technician 3 | . . . . . . . . . . . . . . 3 Z-Light 2 | . . . . . . . . . . . . . . 2 Assembled 18 | . . 2 . . . . . . . . . . . 16 Golem 1 | . . . . . . . . . . . . . . 1 Best Kill Streak 16 | 2 3 1 . 5 3 4 5 . 1 4 3 6 . 16 Combat Bots Only 16 | . 3 1 . 3 3 4 4 . 1 4 3 6 . 16 Max Kills in Single Turn 4 | 1 1 1 . 3 2 4 3 . 1 2 3 2 . 4 Gunslinging 1 | . . . . 1 . . . . . . . . . . Exploded 4 | . . . . 2 2 4 2 . . 2 3 2 . 4 Melee . | . . . . . . . . . . . . . . . Uniques/NPCs Destroyed 1 | . . . . . . . . . . . . . . 1 Z-Imprinter (-7/Deep Caves) Combat | -11 -10 -10 -10 -9 -8 -8 -8 -7 -7 -7 -7 -7 -7 -7 -------- Run | Yrd Mat Min Exi Min Mat Gar Mat Fac Was Fac Low Low Zio Dee Hostile Shots Fired 619 | . 32 8 . 26 61 128 89 . 17 34 38 71 . 115 Missed 153 | . 12 1 . 9 10 30 24 . . 11 15 15 . 26 Damage Taken 8801 | . 303 134 . 253 772 1644 1011 . 757 429 132 1234 . 2132 Core 1135 | . 31 43 . 30 52 160 109 . 157 54 . 145 . 354 Absorbed by Shields 128 | . . . . . . . . . . 4 92 32 . . Reduced by Siege Mode 40 | . . . . . . . . . . 12 . . . 28 Ignored by Resistances 9 | . . . . . . . 9 . . . . . . . Regen/Repaired (Parts) 736 | . . . . . . . 377 . . . . . 359 . Core Remaining (%) 66 | 100 . . . 58 . . 41 . . . . . . . Volleys Fired 406 | 5 30 11 . 22 38 85 65 . 51 35 5 27 2 30 Largest 3 | 2 2 2 . 2 2 2 2 . 2 3 3 3 1 3 Hottest 133 | 70 55 40 . 59 88 109 94 . 99 125 133 133 20 133 Shots Fired 699 | 10 60 23 . 40 74 146 105 . 81 53 14 40 2 51 Gun 312 | 10 45 23 . 30 71 79 11 . . 11 4 8 2 18 Cannon 333 | . 15 . . 5 1 59 90 . 81 34 9 15 . 24 Launcher 54 | . . . . 5 2 8 4 . . 8 1 17 . 9 Special . | . . . . . . . . . . . . . . . Kinetic 500 | 5 60 23 . 35 64 101 85 . 77 34 4 4 . 8 Thermal 111 | 5 . . . . 8 36 . . . 11 9 18 2 22 Explosive 31 | . . . . 5 2 8 4 . . 2 1 . . 9 Electromagnetic 57 | . . . . . . 1 16 . 4 6 . 18 . 12 Robot Hit Streak 29 | 2 17 5 . 17 18 15 29 . 19 23 12 14 . 11 Robot Miss Streak 5 | 1 4 3 . 2 3 3 5 . 2 2 1 5 . 4 Penetration Max . | . . . . . . . . . . . . . . . Secondary Targets 1 | . . . . 1 . . . . . . . . . . Max Gunslinging Chain 1 | . . . . 1 . . . . . . . . . . Shots Hit Robots 496 | 5 40 11 . 26 56 103 80 . 71 28 10 24 . 42 Core Hits 288 | 3 13 7 . 25 23 50 58 . 13 20 4 24 . 48 Critical Kills 1 | 1 . . . . . . . . . . . . . . Critical Parts Destroyed . | . . . . . . . . . . . . . . . Critical Strikes 9 | 1 . . . . . 4 . . 2 2 . . . . Burn 1 | . . . . . . 1 . . . . . . . . Destroy 1 | 1 . . . . . . . . . . . . . . Blast 7 | . . . . . . 3 . . 2 2 . . . . Melee Attacks 59 | . . . . . . 43 . . . . . . 4 12 Impact 43 | . . . . . . 43 . . . . . . . . Slashing 16 | . . . . . . . . . . . . . 4 12 Piercing . | . . . . . . . . . . . . . . . Sneak Attacks 4 | . . . . . . . . . . . . . . 4 Combat Hostiles . | . . . . . . . . . . . . . . . Follow-up Attacks . | . . . . . . . . . . . . . . . Damage Inflicted 15794 | 64 573 144 . 770 914 2938 1992 . 2643 1497 423 1528 . 2308 Guns 3333 | 64 401 144 . 288 798 886 220 . . 127 57 130 . 218 Cannons 6851 | . 172 . . 109 . 1171 1397 . 2638 580 187 245 . 352 Explosions 5182 | . . . . 372 116 793 375 . 5 790 179 1153 . 1399 Melee 427 | . . . . . . 88 . . . . . . . 339 Ramming 1 | . . . . 1 . . . . . . . . . . Kinetic 8447 | 52 573 144 . 397 695 1681 1345 . 2638 580 82 80 . 180 Thermal 2021 | 12 . . . . 103 369 129 . . 413 162 380 . 453 Explosive 2820 | . . . . 372 116 625 204 . . 281 179 . . 1043 Electromagnetic 2078 | . . . . . . 175 314 . 5 223 . 1068 . 293 Impact 88 | . . . . . . 88 . . . . . . . . Slashing 339 | . . . . . . . . . . . . . . 339 Piercing . | . . . . . . . . . . . . . . . Highest Corruption 41 | . 2 2 2 2 . 6 6 . 5 7 7 41 41 9 Average Corruption 5 | . 2 2 2 2 . 5 6 . 4 5 7 32 41 8 Corruption Purged . | . . . . . . . . . . . . . . . Corruption Blocked . | . . . . . . . . . . . . . . . Effects 254 | . 8 16 7 19 . 51 40 . 14 53 13 26 4 3 Message Errors 63 | . 2 7 1 5 . 17 6 . 3 12 2 8 . . Matter Fused 56 | . 1 1 1 6 . 11 13 . 3 11 2 6 1 . Heat Flow Errors 28 | . 1 2 2 . . 6 6 . . 5 3 3 . . Energy Discharges 40 | . 3 2 3 2 . 6 3 . 4 7 5 4 . 1 Parts Rejected 2 | . . . . . . . 2 . . . . . . . Parts Fused 2 | . . . . . . . . . 1 . . 1 . . Data Loss (minor) 31 | . 1 2 . 4 . 7 1 . 2 8 . 3 3 . Data Loss (major) 9 | . . 1 . 1 . . 3 . 1 3 . . . . Misfires 14 | . . 1 . 1 . 1 3 . . 5 1 1 . 1 Alerts 5 | . . . . . . . 3 . . 2 . . . . Weapon Failures 4 | . . . . . . 3 . . . . . . . 1 Overload Shots 1 | . . . . . . . . . . 1 . . . . Effects 1 | . . . . . . . . . . 1 . . . . Short Circuit 1 | . . . . . . . . . . 1 . . . . Overflow Damage 478 | . . . . . . 69 9 . . 189 45 . . 166 Projectiles 27 | . . . . . . 9 9 . . 9 . . . . Explosions 301 | . . . . . . 12 . . . 180 45 . . 64 Melee 150 | . . . . . . 48 . . . . . . . 102 Knockbacks 47 | . 1 . . 2 . 17 22 . . 2 . 2 . 1 Impact . | . . . . . . . . . . . . . . . Kinetic 42 | . 1 . . 1 . 16 20 . . 2 . 1 . 1 Secondary 5 | . . . . 1 . 1 2 . . . . 1 . . Self-Inflicted Damage 687 | . . . . 32 30 53 63 . . 105 26 132 . 246 Shots 23 | . . . . 2 1 1 3 . . 2 1 6 . 7 Rammed 1 | . . . . 1 . . . . . . . . . . Targets Rammed 1 | . . . . 1 . . . . . . . . . . Kicked . | . . . . . . . . . . . . . . . Crushed . | . . . . . . . . . . . . . . . Highest Temperature 536 | 27 165 254 239 78 152 240 228 . 287 340 289 536 . 172 Average Temperature 83 | 12 52 69 111 26 33 77 76 . 79 86 120 190 . 77 Received Heat Transfer 2137 | . 177 60 . 66 423 405 279 . . 75 31 462 . 159 Effects 12 | . . 2 . . . . . . . 2 . 8 . . Shutdowns 1 | . . . . . . . . . . . . 1 . . Interference 6 | . . 2 . . . . . . . 2 . 2 . . Short Circuit 2 | . . . . . . . . . . . . 2 . . Damage (minor) 1 | . . . . . . . . . . . . 1 . . Damage (major) 2 | . . . . . . . . . . . . 2 . . Siege Activations 8 | . . . . . . . . . . 6 . . . 2 Total Turns 87 | . . . . . . . . . . 39 . . . 48 Longest Duration 25 | . . . . . . . . . . 13 . . . 25 Robots Corrupted 5 | . . . . . . . 1 . . 1 . 2 . 1 Combat Hostiles 5 | . . . . . . . 1 . . 1 . 2 . 1 Parts Fried 6 | . . . . . . 2 1 . . 1 . 2 . . Impact Corruptions 1 | . . . . . . 1 . . . . . . . . Robots Melted . | . . . . . . . . . . . . . . . Combat Hostiles . | . . . . . . . . . . . . . . . Parts Melted 5 | . . . . . . 4 . . . 1 . . . . Heat Transferred 2740 | 37 . . . . 259 809 100 . . 372 259 531 . 373 Parts Sabotaged . | . . . . . . . . . . . . . . . Parts Stolen . | . . . . . . . . . . . . . . . Parts Stripped . | . . . . . . . . . . . . . . . Power Chain Reactions 6 | . . . . . . . 1 . . 2 . 2 . 1 Latent Energy Used 723 | . . . . . . 160 . . 142 . . 95 . 326 LE Corruption 17 | . . . . . . 3 . . 5 . . 2 . 7 Alert | -11 -10 -10 -10 -9 -8 -8 -8 -7 -7 -7 -7 -7 -7 -7 ------- Run | Yrd Mat Min Exi Min Mat Gar Mat Fac Was Fac Low Low Zio Dee Peak Influence 1214 | 10 133 116 . 192 303 1214 858 145 51 294 . . . . Initial 591 | . 6 6 . . 41 39 591 133 50 . . . . . Average 250 | 6 49 53 . 56 134 674 576 142 17 127 . . . . Maximum Alert Level 4 | . . . . . 1 4 3 . . 1 . . . . Low Security (%) 67 | 100 100 100 . 100 82 14 . 100 100 84 . . . . Level 1 7 | . . . . . 17 13 8 . . 15 . . . . Level 2 12 | . . . . . . 16 72 . . . . . . . Level 3 9 | . . . . . . 37 19 . . . . . . . Level 4 3 | . . . . . . 17 . . . . . . . . Level 5 . | . . . . . . . . . . . . . . . High Security . | . . . . . . . . . . . . . . . Max Security . | . . . . . . . . . . . . . . . Squads Dispatched 14 | . 2 . . . 3 . 2 . . 6 . 1 . . Investigation 3 | . 1 . . . 1 . . . . 1 . . . . Extermination 2 | . . . . . . . . . . 2 . . . . Reinforcement 6 | . 1 . . . . . 2 . . 3 . . . . Assault 1 | . . . . . . . . . . . . 1 . . Garrison 2 | . . . . . 2 . . . . . . . . . Intercept . | . . . . . . . . . . . . . . . Searches Triggered . | . . . . . . . . . . . . . . . Construction Impeded . | . . . . . . . . . . . . . . . Haulers Reinforced 1 | . . . . . . . . . . 1 . . . . Active Scanning Responses . | . . . . . . . . . . . . . . . Cargo Convoy Interrupts . | . . . . . . . . . . . . . . . Stealth | -11 -10 -10 -10 -9 -8 -8 -8 -7 -7 -7 -7 -7 -7 -7 --------- Run | Yrd Mat Min Exi Min Mat Gar Mat Fac Was Fac Low Low Zio Dee Distress Signals 6 | . 2 . . . . . 3 . . 1 . . . . Communications Jammed . | . . . . . . . . . . . . . . . Distress Signals . | . . . . . . . . . . . . . . . Times Spotted 175 | . 7 7 . 14 13 35 24 . 6 16 4 18 . 31 Peak Tracking Total 16 | . 3 2 . 3 3 5 5 . 2 3 3 6 . 16 Tactical Retreats 8 | . 2 . . 1 . 1 1 . 1 . . 2 . . Traps | -11 -10 -10 -10 -9 -8 -8 -8 -7 -7 -7 -7 -7 -7 -7 ------- Run | Yrd Mat Min Exi Min Mat Gar Mat Fac Was Fac Low Low Zio Dee Traps Triggered 6 | . 2 . . . 1 1 . 1 . 1 . . . . Indirectly . | . . . . . . . . . . . . . . . Trap Hack Attempts . | . . . . . . . . . . . . . . . Triggered . | . . . . . . . . . . . . . . . Disarmed . | . . . . . . . . . . . . . . . Reprogrammed . | . . . . . . . . . . . . . . . Reused . | . . . . . . . . . . . . . . . Traps Extracted . | . . . . . . . . . . . . . . . Installed . | . . . . . . . . . . . . . . . Triggered . | . . . . . . . . . . . . . . . Most Traps Carried 2 | . . . . 2 . . . . . . . . . . Machines | -11 -10 -10 -10 -9 -8 -8 -8 -7 -7 -7 -7 -7 -7 -7 ---------- Run | Yrd Mat Min Exi Min Mat Gar Mat Fac Was Fac Low Low Zio Dee Machines Disabled 20 | . 1 . . . . 4 2 . . 10 . 1 . 2 Max in Single Turn 6 | . 1 . . . . 1 2 . . 6 . 1 . 1 Garrison Access 2 | . . . . . . . . 1 . 1 . . . . Machines Repaired . | . . . . . . . . . . . . . . . Machines Dismantled . | . . . . . . . . . . . . . . . Machines Sabotaged . | . . . . . . . . . . . . . . . Overloaded Fab Kills . | . . . . . . . . . . . . . . . Hacking | -11 -10 -10 -10 -9 -8 -8 -8 -7 -7 -7 -7 -7 -7 -7 --------- Run | Yrd Mat Min Exi Min Mat Gar Mat Fac Was Fac Low Low Zio Dee Machines Accessed 33 | . 7 . 2 . 4 2 5 3 . 10 . . . . Terminals 22 | . 6 . . . 3 2 4 2 . 5 . . . . Fabricators 3 | . . . . . . . . . . 3 . . . . Repair Stations 1 | . . . . . . . 1 . . . . . . . Recycling Units 1 | . 1 . . . . . . . . . . . . . Scanalyzers 1 | . . . . . . . . . . 1 . . . . Garrison Access 3 | . . . . . 1 . . 1 . 1 . . . . Total Hacks 79 | . 18 . 2 . 9 3 14 5 . 28 . . . . Successful 42 | . 10 . 2 . 3 2 8 2 . 15 . . . . Failed 36 | . 7 . . . 6 1 6 3 . 13 . . . . Catastrophic 5 | . 1 . . . 1 . 1 . . 2 . . . . Database Lockouts 1 | . 1 . . . . . . . . . . . . . Manual 33 | . 12 . 1 . 3 . 6 4 . 7 . . . . Terminals 61 | . 17 . . . 7 3 12 4 . 18 . . . . Fabricators 5 | . . . . . . . . . . 5 . . . . Repair Stations 2 | . . . . . . . 2 . . . . . . . Recycling Units 1 | . 1 . . . . . . . . . . . . . Scanalyzers 3 | . . . . . . . . . . 3 . . . . Garrison Access 5 | . . . . . 2 . . 1 . 2 . . . . Terminal Hacks 24 | . 7 . 2 . 2 2 4 . . 7 . . . . Record 1 | . . . 1 . . . . . . . . . . . Robot Analysis 2 | . 1 . . . 1 . . . . . . . . . Prototype ID Bank 5 | . 2 . . . . . . . . 3 . . . . Open Door 1 | . . . . . . 1 . . . . . . . . Level Access Points 1 | . 1 . . . . . . . . . . . . . Branch Access Points 1 | . . . . . . . . . . 1 . . . . Emergency Access Points 1 | . . . . . . 1 . . . . . . . . Terminal Index 1 | . 1 . . . . . . . . . . . . . Fabricator Index 1 | . . . . . . . . . . 1 . . . . Alert Level 2 | . . . . . . . 1 . . 1 . . . . Unreport Threat 5 | . 1 . . . 1 . 3 . . . . . . . Hauler Manifests 1 | . 1 . . . . . . . . . . . . . Registered Components 1 | . . . . . . . . . . 1 . . . . Derelict Proto ID Bank 1 | . . . 1 . . . . . . . . . . . Fabricator Hacks 4 | . . . . . . . . . . 4 . . . . Network Status 2 | . . . . . . . . . . 2 . . . . Build 2 | . . . . . . . . . . 2 . . . . Repair Station Hacks 2 | . . . . . . . 2 . . . . . . . Scan Component 1 | . . . . . . . 1 . . . . . . . Repair 1 | . . . . . . . 1 . . . . . . . Recycling Unit Hacks . | . . . . . . . . . . . . . . . Scanalyzer 1 | . . . . . . . . . . 1 . . . . Insert Component 1 | . . . . . . . . . . 1 . . . . Garrison Access Hacks 3 | . . . . . 1 . . 1 . 1 . . . . Unlock Access 1 | . . . . . 1 . . . . . . . . . Seal Access 2 | . . . . . . . . 1 . 1 . . . . Unauthorized Hacks 8 | . 3 . . . . . 2 1 . 2 . . . . Terminals 7 | . 2 . . . . . 2 1 . 2 . . . . Assimilate 1 | . . . . . . . . . . 1 . . . . Botnet 6 | . 2 . . . . . 2 1 . 1 . . . . Fabricators . | . . . . . . . . . . . . . . . Repair Stations . | . . . . . . . . . . . . . . . Recycling Units 1 | . 1 . . . . . . . . . . . . . Tunnel 1 | . 1 . . . . . . . . . . . . . Scanalyzers . | . . . . . . . . . . . . . . . Garrison Access . | . . . . . . . . . . . . . . . Data Cores Recovered 1 | . . . . . . . 1 . . . . . . . Used . | . . . . . . . . . . . . . . . Hacking Detections 24 | . 5 . . . 4 . 5 2 . 8 . . . . Full Trace Events 1 | . . . . . . . . . . 1 . . . . Feedback Events . | . . . . . . . . . . . . . . . Feedback Blocked . | . . . . . . . . . . . . . . . Robot Schematics Acquired 4 | . . . . . . . . . . . . . 4 . Robots Built . | . . . . . . . . . . . . . . . Authchips . | . . . . . . . . . . . . . . . Time . | . . . . . . . . . . . . . . . Total Robot Build Rating . | . . . . . . . . . . . . . . . Part Schematics Acquired 14 | . . . . . . . . . . . . . 14 . Parts Built 3 | . . . . . . . . . . 3 . . . . Authchips . | . . . . . . . . . . . . . . . Time 142 | . . . . . . . . . . 142 . . . . Total Part Build Rating 18 | . . . . . . . . . . 18 . . . . Parts Repaired 1 | . . . . . . . 1 . . . . . . . Time 26 | . . . . . . . 26 . . . . . . . Parts Recycled . | . . . . . . . . . . . . . . . Recycled Matter . | . . . . . . . . . . . . . . . Retrieved Matter . | . . . . . . . . . . . . . . . Retrieved Components . | . . . . . . . . . . . . . . . Parts Scanalyzed 1 | . . . . . . . . . . 1 . . . . Part Schematics Acquired . | . . . . . . . . . . . . . . . Parts Damaged . | . . . . . . . . . . . . . . . Bothacking | -11 -10 -10 -10 -9 -8 -8 -8 -7 -7 -7 -7 -7 -7 -7 ------------ Run | Yrd Mat Min Exi Min Mat Gar Mat Fac Was Fac Low Low Zio Dee Used RIF Installer . | . . . . . . . . . . . . . . . Robots Hacked . | . . . . . . . . . . . . . . . Non-combat . | . . . . . . . . . . . . . . . Combat . | . . . . . . . . . . . . . . . Robot Hacks Applied . | . . . . . . . . . . . . . . . Relay Couplers Released 4 | . . . . . . 4 . . . . . . . . Programmers 4 | . . . . . . 4 . . . . . . . . Fabnet Peak Effective % . | . . . . . . . . . . . . . . . Robots Rewired 4 | . . . . . . 2 . . . . . 2 . . Allies Hacked 1 | . . . . . . 1 . . . . . . . . Hacks Repelled . | . . . . . . . . . . . . . . . Allies | -11 -10 -10 -10 -9 -8 -8 -8 -7 -7 -7 -7 -7 -7 -7 -------- Run | Yrd Mat Min Exi Min Mat Gar Mat Fac Was Fac Low Low Zio Dee Total Allies 16 | . . 3 . 1 . 3 . . 1 1 . 2 5 . Largest Group 6 | . . 3 3 3 . 2 . . 1 1 . 2 6 6 Highest-Rated Group 179 | . . 40 40 63 . 179 . . 31 26 . 36 146 146 Highest-Rated Ally 179 | . . 16 16 31 . 179 . . 31 26 . 20 31 31 Total Orders 1 | . . . . . . . . . . . . . . 1 STAY 1 | . . . . . . . . . . . . . . 1 Ally Attacks 138 | . . 22 . 24 . 34 . . 17 . . 11 . 30 Total Damage 2154 | . . 221 . 294 . 584 . . 226 . . 160 . 669 Kills 20 | . . 5 . 4 . 6 . . . . . 2 . 3 Allies Corrupted . | . . . . . . . . . . . . . . . Allies Melted . | . . . . . . . . . . . . . . . Intel | -11 -10 -10 -10 -9 -8 -8 -8 -7 -7 -7 -7 -7 -7 -7 ------- Run | Yrd Mat Min Exi Min Mat Gar Mat Fac Was Fac Low Low Zio Dee Robot Analysis Total 2 | . 1 . . . 1 . . . . . . . . . Derelict Logs Recovered 3 | . . 1 . 1 . . . . . . 1 . . . Drone Launches . | . . . . . . . . . . . . . . . Drone Recoveries . | . . . . . . . . . . . . . . . Exploration | -11 -10 -10 -10 -9 -8 -8 -8 -7 -7 -7 -7 -7 -7 -7 ------------- Run | Yrd Mat Min Exi Min Mat Gar Mat Fac Was Fac Low Low Zio Dee Turns Passed 14433 | 40 1019 1024 609 1709 686 1816 1384 206 514 2064 426 573 1242 1121 Spaces Moved 7318 | 19 597 568 279 649 330 873 661 142 283 1016 234 292 788 587 Core 1 | . . . . . . . . . . . . 1 . . Treads 4598 | . 236 568 279 649 330 873 661 16 . 389 61 2 3 531 Legs 380 | 19 361 . . . . . . . . . . . . . Wheels 2339 | . . . . . . . . 126 283 627 173 289 785 56 Hover . | . . . . . . . . . . . . . . . Flight . | . . . . . . . . . . . . . . . Fastest Speed 100 | 120 120 160 160 240 160 160 156 130 100 100 129 129 150 130 Average Speed 168 | 120 145 160 218 240 160 160 165 134 116 178 168 155 151 161 Slowest Speed 1900 | 120 240 160 240 240 160 240 235 170 130 240 240 1900 560 240 Overloaded Moves . | . . . . . . . . . . . . . . . Propulsion Burnouts . | . . . . . . . . . . . . . . . Robots Hopped . | . . . . . . . . . . . . . . . Cave-ins Triggered . | . . . . . . . . . . . . . . . Exploration Rate (%) 57 | 2 94 92 69 84 25 93 58 5 86 20 41 44 84 70 Regions Visited 14 Branch Regions 7 Pre-discovered Areas 8 | . 1 . 1 1 . . . . . . 1 . 4 . Known Exits Taken 3 | . . . . . 1 . . . . 1 1 . . . Unknown Exits Taken 8 | 1 1 1 1 1 . . 1 . . . . 1 1 . Scrap Searched 9 | . . 1 . 2 . . . . . . 4 . 2 . Spaces Dug 113 | . . . . 15 . 3 20 . . 63 10 . 2 . Terrain Destroyed 315 | . . . . 42 11 45 42 . 7 101 11 14 2 40 Melee 5 | . . . . . . 3 . . . . . . 2 . Projectile 26 | . . . . . . . . . 7 13 1 3 . 2 AOE 284 | . . . . 42 11 42 42 . . 88 10 11 . 38 Terrain Rammed . | . . . . . . . . . . . . . . . Walls Destroyed . | . . . . . . . . . . . . . . . Machines Disabled . | . . . . . . . . . . . . . . . Actions | -11 -10 -10 -10 -9 -8 -8 -8 -7 -7 -7 -7 -7 -7 -7 --------- Run | Yrd Mat Min Exi Min Mat Gar Mat Fac Was Fac Low Low Zio Dee Total 8689 | 25 691 662 281 762 427 1096 855 161 358 1224 257 368 825 697 Wait 444 | . 28 79 . 71 17 12 46 4 3 130 10 2 12 30 Move 7304 | 18 596 567 278 648 330 870 660 142 282 1015 233 291 787 587 Hop . | . . . . . . . . . . . . . . . Pick Up 114 | 1 10 1 1 7 10 6 28 3 13 21 3 . 5 5 Fast Attach 53 | 1 5 . . 2 2 7 9 1 6 8 . 5 3 4 Attach 44 | . . 1 . . 5 8 5 3 1 5 2 3 2 9 Detach 17 | . 3 . . . . . 2 3 . 6 . . 1 2 Swap 97 | . 7 1 1 5 10 34 15 2 2 1 2 6 4 7 Drop 102 | . 12 2 1 6 15 17 25 3 . 3 2 . 5 11 Fire 406 | 5 30 11 . 22 38 85 65 . 51 35 5 27 2 30 Melee 59 | . . . . . . 43 . . . . . . 4 12 Ram . | . . . . . . . . . . . . . . . Kick . | . . . . . . . . . . . . . . . Crush 1 | . . . . 1 . . . . . . . . . . Escape Stasis . | . . . . . . . . . . . . . . . Rewire 48 | . . . . . . 14 . . . . . 34 . . Trap . | . . . . . . . . . . . . . . . Miscellaneous . | . . . . . . . . . . . . . . . Route ------- -11/Scrapyard -10/Materials (discovered 5 exits: *Mat x3 / [*Min x2]) -10/Mines (discovered 3 exits: *Mat x2 / *Exi) -10/Exiles -9/Mines -8/Materials -8/Garrison (discovered 3 exits: *Mat x3) -8/Materials -7/Factory -7/Waste -7/Factory (discovered 2 exits: *Low x2) -7/Lower Caves -7/Lower Caves -7/Zion (discovered 2 exits: [*Dee] / [*Pro]) -7/Deep Caves (discovered 1 exit: [*Pro]) History --------- Turn | Location | Event 1 | -11/Scrapyard | Discovered new exit (range 3) 41 | -11/Scrapyard | Entered Materials 94 | -10/Materials | Central database locked down 175 | -10/Materials | Met 8R-AWN 202 | -10/Materials | Discovered new exit (range 16) 331 | -10/Materials | Discovered new exit (range 8) 425 | -10/Materials | Discovered new exit (range 15) 511 | -10/Materials | Discovered new exit (range 15) 594 | -10/Materials | Build established: Mutant 770 | -10/Materials | Discovered new exit (range 8) 814 | -10/Materials | Identified exit to Materials 1060 | -10/Materials | Entered Mines 1061 | -10/Mines | Assembled infested the area 1062 | -10/Mines | Followed 8R-AWN into the Mines 1066 | -10/Mines | Assisted by a Guerilla fighting off Assembled 1121 | -10/Mines | Discovered exit to Materials (range 5) 1132 | -10/Mines | Assisted by bots powering up and referring to "LRC-V3" 1241 | -10/Mines | Discovered new exit (range 5) 1552 | -10/Mines | A weapon hastily lodged in a ceiling crevice suddenly fell to the ground 2084 | -10/Mines | Entered Exiles 2084 | -10/Exiles | Accompanied by 3 allies 2123 | -10/Exiles | Welcomed by 8R-AWN 2152 | -10/Exiles | Met EX-HEX 2241 | -10/Exiles | Met EX-DEC 2287 | -10/Exiles | Met EX-BIN 2320 | -10/Exiles | Aligned with FarCom system 2323 | -10/Exiles | Given EX-Vault access code 2388 | -10/Exiles | Opened EX-Vault 2407 | -10/Exiles | Found Latent Energy Streamer 2461 | -10/Exiles | Warned to stay clear of 0b10 Research branches 2545 | -10/Exiles | Learned location of Zion (-7) 2662 | -10/Exiles | Discovered new exit (range 14) 2693 | -10/Exiles | Left Exiles lab with Latent Energy Streamer 2693 | -10/Exiles | Entered Mines 2693 | -9/Mines | Accompanied by 3 allies 2844 | -9/Mines | Found a hidden stash of uninstalled traps 3380 | -9/Mines | Received a Mining Laser from a helpful Derelict 3503 | -9/Mines | Learned location of Storage (-9) 4180 | -9/Mines | Discovered new exit (range 5) 4402 | -9/Mines | Entered Materials 4402 | -8/Materials | Evolved 4 slots: Propulsion x2, Utility x2 4547 | -8/Materials | Garrison activated, responded to threat 4995 | -8/Materials | Garrison activated, responded to threat 5085 | -8/Materials | Identified exit to Garrison 5088 | -8/Materials | Entered Garrison 5108 | -8/Garrison | Triggered checkpoint 5523 | -8/Garrison | Triggered checkpoint 5541 | -8/Garrison | Triggered checkpoint 5559 | -8/Garrison | Triggered checkpoint 5802 | -8/Garrison | Discovered new exit (range 15) 5852 | -8/Garrison | Build established: Scavenger-Mutant 5880 | -8/Garrison | Triggered checkpoint 6092 | -8/Garrison | Discovered new exit (range 10) 6154 | -8/Garrison | Triggered checkpoint 6304 | -8/Garrison | Triggered checkpoint 6383 | -8/Garrison | Discovered new exit (range 9) 6442 | -8/Garrison | Triggered checkpoint 6501 | -8/Garrison | Lost 3 parts (1p2w) 6599 | -8/Garrison | Rescued AZ-K3N 6671 | -8/Garrison | Attempted to access garrison exit controls, blocked by remote lockdown 6763 | -8/Garrison | Attempted to access garrison exit controls, blocked by remote lockdown 6904 | -8/Garrison | Entered Materials 7104 | -8/Materials | Core integrity fell below 50% 7552 | -8/Materials | Build established: Mutant 7893 | -8/Materials | Repaired Hcp. Storage Unit 7967 | -8/Materials | Discovered new exit (range 3) 8288 | -8/Materials | Entered Factory 8288 | -7/Factory | Evolved 2 slots: Power x1, Weapon x1 8447 | -7/Factory | Discovered new exit (range 12) 8494 | -7/Factory | Sucked down chute 8494 | -7/Factory | Entered Waste 8495 | -7/Waste | Met a frightened Derelict 8501 | -7/Waste | Spotted C-40 Crusher 8510 | -7/Waste | Spotted C-40 Crusher 8530 | -7/Waste | Destroyed C-40 Crusher 8540 | -7/Waste | Crushed by Compactor (1 part destroyed, 2 dropped) 8543 | -7/Waste | Crushed by Compactor (0 parts destroyed, 1 dropped) 8551 | -7/Waste | Destroyed C-40 Crusher 8587 | -7/Waste | Spotted C-40 Crusher 8598 | -7/Waste | Destroyed C-40 Crusher 8690 | -7/Waste | Spotted C-40 Crusher 8702 | -7/Waste | Destroyed C-40 Crusher 8707 | -7/Waste | Spotted C-40 Crusher 8804 | -7/Waste | Build established: Skirmisher 8807 | -7/Waste | Crushed by Compactor (1 part destroyed, 1 dropped) 8847 | -7/Waste | Crushed by Compactor (1 part destroyed, 1 dropped) 8850 | -7/Waste | Crushed by Compactor (0 parts destroyed, 1 dropped) 8878 | -7/Waste | Spotted C-40 Crusher 8899 | -7/Waste | Lost 3 parts (1p1n1u) 8988 | -7/Waste | Discovered new exit (range 12) 9008 | -7/Waste | Entered Factory 9039 | -7/Factory | Identified exit to Lower Caves 9098 | -7/Factory | Fabricated Imp. Medium Armor Plating (x1) 10131 | -7/Factory | Fabricated Centrium Wheel (x2) 10668 | -7/Factory | Build established: Mutant 11072 | -7/Factory | Entered Lower Caves 11073 | -7/Lower Caves | Encountered a Warlord checkpoint 11078 | -7/Lower Caves | Met a Warlord Commander 11079 | -7/Lower Caves | Learned location of Warlord (-5) 11080 | -7/Lower Caves | Warlord Commander delivered Encrypted Comm Array 11087 | -7/Lower Caves | Found Unknown Device 11327 | -7/Lower Caves | Identified exit to Lower Caves 11371 | -7/Lower Caves | Build established: Tank 11410 | -7/Lower Caves | Attracted the attention of an 0b10 checkpoint 11498 | -7/Lower Caves | Entered another Lower Caves area 11561 | -7/Lower Caves | Attracted the attention of an 0b10 outpost 11582 | -7/Lower Caves | System corruption reached 10% 11652 | -7/Lower Caves | Core integrity fell below 50% 11658 | -7/Lower Caves | Lost 7 parts (1p2n2u2w) 11688 | -7/Lower Caves | System corruption reached 30% 11949 | -7/Lower Caves | Build established: Scavenger-Mutant 12061 | -7/Lower Caves | Discovered new exit (range 8) 12071 | -7/Lower Caves | Entered Zion 12071 | -7/Zion | Accompanied by 1 ally 12130 | -7/Zion | System corruption cleaned by Quarantine Array 12184 | -7/Zion | Found CR-A16's Pointy Stick 12249 | -7/Zion | Discovered new exit (range 15) 12432 | -7/Zion | Learned location of Armory (-4) 12618 | -7/Zion | Gained Derelict followers 12703 | -7/Zion | Build established: Scavenger-Gunner 12765 | -7/Zion | Rebuked by Imprinter 12885 | -7/Zion | Given the Hacking Drone Bay 12888 | -7/Zion | Found Prototype Device 12913 | -7/Zion | Identified Hacking Drone Bay 12914 | -7/Zion | Identified Encrypted Comm Array 13031 | -7/Zion | Learned location of Data Miner (-6) 13300 | -7/Zion | Discovered new exit (range 5) 13302 | -7/Zion | Saw the warning signs outside the Deep Caves entrance 13313 | -7/Zion | Entered Deep Caves 13313 | -7/Deep Caves | Accompanied by 6 allies 13458 | -7/Deep Caves | Attacked by Z-Imprinter 13485 | -7/Deep Caves | Destroyed Z-Imprinter 13525 | -7/Deep Caves | Found Prototype Protection 13525 | -7/Deep Caves | Identified Zio. Weapon Casing 13527 | -7/Deep Caves | Lost 4 allies 13608 | -7/Deep Caves | Z-Facility disabled 13879 | -7/Deep Caves | Build established: Scavenger-Mutant 14268 | -7/Deep Caves | Discovered new exit (range 6) 14350 | -7/Deep Caves | Spotted AG-18128 14380 | -7/Deep Caves | Exposed GOLEM chamber 14381 | -7/Deep Caves | Triggered Deep Caves wall 14390 | -7/Deep Caves | Destroyed AG-18128 14426 | -7/Deep Caves | Core integrity fell below 20% 14434 | -7/Deep Caves | Destroyed by as-19762 with Assembled Heavy Rifle Last Messages --------------- 14417_ System corrupted: Energy discharge (-120). 14417_ Imp. Treads destroyed. 14418_ Cld. Deuterium Engine destroyed. 14418_ Destroyed Cld. Deuterium Engine. 14420_ System corrupted: Imp. Grenade Launcher failed to launch. 14421_ Imp. Medium Armor Plating destroyed. 14422_ as-23025 destroyed. 14423_ Mic. Nuclear Core destroyed. 14424_ as-77487 destroyed. 14424_ as-01337 destroyed. 14424_ as-38654 destroyed. 14424_ Lightning Gun destroyed. 14427_ as-56974 destroyed. 14427_ as-10903 destroyed. 14427_ Destroyed Asb. F-torch. 14429_ Missile Launcher destroyed. 14429_ Imp. Grenade Launcher destroyed. 14432_ Dropped Com. Battery. 14433_ Extracted 42 energy. 14433_ Exp. Heat Sink destroyed. Map ----- +----------------------------------------------------+ | ???????????????????????????????????# #????? | | ??????????????????????????????????## ##???? | | ??????????????????????????????##### ##### | | ??????????????????????????????# | | ??????????????????????????????# | | ??????????????????????????????# ## | | ????????????????????????? ??# #### | | ???????????????????? ??# #??#### | | ?????????????????? ??# #?????## | | ???????????????! ![ #?# #??????# | | ????????????? ! = #?# #??????# # | | ??????????? ! a ?# #????### ## | | ??????????? ! a ## #?#### # | | ?????????? a ## #?# ## | | ?????????? a ## #?#< # ##### | | ????????? ## #?########???# | | ????????? ! ## #????????????# | | ????????? ! ## ##?########??# | | ????????" * ### ###### | | ????????""" ] ## | | ????????" * * aa [ #?# | | ?????????" ## ####?# # | | ????????" b ## ## ###### # | | ?????????" ### ### # | | ????????" Ga #?# #?# # | | ????????" ### a @ ##?## ##?############ | | ????????""" ????## ! ##???####?????????????? | | ?????????" ???????# #?????????????????????? | | ??????????????????##### #?????????????????????? | | | | | | | | | | | | | | | | | | | | | | | | | | | | | | | | | | | | | | | | | | | +----------------------------------------------------+ Best States ------------- Heat Dissipation 87 Energy Generation 30 Energy Capacity 500 Matter Stores 300 Matter Capacity 500 Sight Range 16 Terrain Scan Density 10 Armor Coverage 450 Resistance: KI 20 Weapon Shielding 100 Evasion (%) 55 Targeting Accuracy 8 Recoil Reduction 4 Offensive Hacking 10 Item Schematics ----------------- Magnetic Acceleration Cannon | -7/Zion | Archive Mak. Axe | -7/Zion | Archive Lightning Gun | -7/Zion | Archive Imp. System Restoration Module | -7/Zion | Archive Arm. Medium Treads | -7/Zion | Archive Power Amplifier | -7/Zion | Archive System Restoration Module | -7/Zion | Archive Focal Shield | -7/Zion | Archive Imp. Coolant Injector | -7/Zion | Archive Core Analyzer | -7/Zion | Archive Fission Core | -7/Zion | Archive Matter Filter | -7/Zion | Archive Arc Thrower | -7/Zion | Archive Imp. Shield Generator | -7/Zion | Archive Robot Schematics ------------------ A-02 Transporter | -7/Zion | Archive H-55 Commando | -7/Zion | Archive K-01 Serf | -7/Zion | Archive Y-72 Warden | -7/Zion | Archive Fabricated ------------ Imp. Medium Armor Plating | x1 | -7/Factory | Preloaded Centrium Wheel | x2 | -7/Factory | Preloaded Alien Tech Used ----------------- None Achievements -------------- None Challenges ------------ None Game ------ Seed CobblerLayeredWand Manual? 0 Play Time 01:35:02 Cumulative 171.0 hours Start 2024.05.08 @ 19:09:23 End 2024.05.08 @ 21:15:03 Sessions 1 Manual Loads 0 Difficulty Rogue Special Mode None Game No. 145 Rogue 145 Adventurer 0 Explorer 0 Win Type - Total 3 Types 2/0/0/1/0/0/0/0/0 Lore% 58 Gallery% 76 Achievement% 59 Wizard Run 0 Options --------- Layout 2 ASCII 0 Keyboard 1 Movement Numpad Keybinds 0 Fullscreen 1 Font 32/SmallcapsGlow Map View 77x44 Zoom Use 0% Tactical HUD 1 Map Filters NONE Filters NONE Steam 1 RUN: d0bd307a-ffc0-4287-a1e9-0c555a7b5b68